Cogmind - Beta 16 @@@ ROGUE MODE // 2026.01.10 @ 14:06:25 Player: shapeshifter Result: Destroyed self with Missile Launcher Performance ------------- Evolutions (2) 1000 Regions Visited (6) 1200 Robots Destroyed (156) 780 Value Destroyed (4274) 4274 Prototype IDs (29) 580 Alien Tech Used (0) 0 Bonus (1265) 1265 TOTAL SCORE: 9099 Bonus ------- High Alert Combat Kills 11 Follower Combat Kills 544 Registered with UFD 300 Met Optimus in HQ 500 Friendly Fire -90 Cogmind --------- Core Integrity 0/550 Matter 196/300 Energy 271/275 System Corruption 0% Temperature Hot (214) Movement Rolling (115) Ox1 Location -8/Scraptown Parts ------- > --- POWER (1) -------- Deuterium Engine > --- PROPULSION (3) --- Compact Wheel Armored Huge Wheel > --- UTILITY (4) ------ High-capacity Storage Unit Hardened Medium Armor Plating > --- WEAPON (3) ------- Minigun Enhanced Autogun Missile Launcher > --- INVENTORY (20) --- Improved Heat Sink Energy Well (350) Matter Compressor (250) Matter Compressor (250) Deep Structural Scanner Spectral Analyzer Advanced Sensor Array Advanced Signal Interpreter Field Manipulator Authchip [Weapon] A0-MCA's Component Scanner Mapping Drone Bay (3/3) 01-MTF's Shockpuncher KN-7UR's Autopenetrator Siege Cannon Replica CPS Tube (2) CPS Tube (2) PL-3XN's Ring of Power Peak State ------------ > --- POWER ------------ Deuterium Engine > --- PROPULSION ------- Compact Wheel Armored Huge Wheel > --- UTILITY ---------- Improved Heat Sink High-capacity Storage Unit Hardened Heavy Armor Plating > --- WEAPON ----------- Minigun Enhanced Autogun Missile Launcher > --- INVENTORY -------- Energy Well Matter Compressor Matter Compressor Deep Structural Scanner Spectral Analyzer Advanced Sensor Array Advanced Signal Interpreter Advanced Targeting Computer Hardened Medium Armor Plating Makeshift Light Armor Plating Field Manipulator Authchip [Weapon] A0-MCA's Component Scanner Mapping Drone Bay 01-MTF's Shockpuncher KN-7UR's Autopenetrator Assault Cannon CPS Tube CPS Tube PL-3XN's Ring of Power [Rating: 44] Favorites ----------- Power Heavy Ion Engine Engine Heavy Ion Engine Power Core Light Nuclear Core Propulsion Light Treads Treads Light Treads Wheel Armored Huge Wheel Flight Unit Improved Flight Unit Utility Cooling System Device Cooling System Storage Large Storage Unit Processor Terrain Scan Processor Hackware Hacking Suite Protection Light Armor Plating Weapon Heavy Assault Rifle Energy Gun Precision Beam Rifle Energy Cannon Ion Cannon Ballistic Gun Heavy Assault Rifle Ballistic Cannon Assault Cannon Launcher Missile Launcher Impact Weapon Great Maul Special Melee Weapon Improved Datajack Build | -11 -10 -9 -8 -8 -8 -8 ------- Run | Yrd Mat Mat Mat Sto Rec Scr Slots Evolved 4 | . . 2 2 . . . Power . | . . . . . . . Propulsion 1 | . . . 1 . . . Utility 2 | . . 1 1 . . . Weapon 1 | . . 1 . . . . Parts Attached 89 | 7 2 23 16 16 8 17 Power 9 | 1 1 4 1 . . 2 Engine 8 | 1 1 4 1 . . 1 Core 1 | . . . . . . 1 Reactor . | . . . . . . . Propulsion 24 | 2 . 5 5 4 4 4 Treads 20 | 2 . 4 5 4 4 1 Leg . | . . . . . . . Wheel 3 | . . . . . . 3 Hover . | . . . . . . . Flight 1 | . . 1 . . . . Utility 23 | 2 1 7 4 3 . 6 Device 8 | 1 . 4 1 1 . 1 Storage 4 | 1 1 . . . . 2 Processor 1 | . . 1 . . . . Hackware 1 | . . . 1 . . . Protection 9 | . . 2 2 2 . 3 Artifact . | . . . . . . . Weapon 33 | 2 . 7 6 9 4 5 Energy Gun 10 | . . 1 6 1 2 . Energy Cannon 2 | . . . . 1 . 1 Ballistic Gun 16 | 2 . 6 . 5 . 3 Ballistic Cannon 2 | . . . . . 1 1 Launcher 1 | . . . . 1 . . Special Weapon . | . . . . . . . Impact Weapon 1 | . . . . . 1 . Slashing Weapon . | . . . . . . . Piercing Weapon . | . . . . . . . Special Melee Weapon 1 | . . . . 1 . . Unidentified Prototypes 10 | . . 3 2 2 2 1 Parts Lost 16 | . 1 3 3 4 . 5 Power 2 | . . 1 . . . 1 Propulsion 4 | . . 1 . 2 . 1 Utility 6 | . 1 . 2 1 . 2 Weapon 4 | . . 1 1 1 . 1 Highest Loss Streak 4 | . 1 2 2 3 . 4 To Critical Strikes . | . . . . . . . Average Backups 14 | 3 11 14 12 13 14 17 Power . | . 2 1 . . 1 . Propulsion 2 | 1 2 2 1 2 3 1 Utility 6 | . 3 5 4 5 4 8 Weapon 4 | . 3 3 4 4 4 5 Tool/Special . | . . . . . . . Unused Backups 58 | . 3 18 2 3 6 26 Power 1 | . 1 . . . . . Propulsion 11 | . . 8 . . 1 2 Utility 30 | . . 7 1 1 3 18 Weapon 12 | . 2 3 . 2 2 3 Tool/Special 4 | . . . 1 . . 3 Average Slot Usage (%) 93 | . 99 95 95 99 95 86 Engine 8 | . 14 10 9 9 9 6 Treads 21 | . 28 21 27 26 27 13 Wheel 3 | . . . . . . 8 Device 10 | . 13 13 14 11 9 8 Storage 9 | . 14 11 9 9 9 9 Hackware 4 | . . . 3 9 9 3 Protection 7 | . . 5 6 6 9 10 Energy Gun 6 | . . 3 22 14 . 6 Ballistic Gun 13 | . 28 25 4 11 18 4 Ballistic Cannon 1 | . . . . . . 3 Special Melee Weapon 3 | . . . . . 3 8 Peak Build Rating 44 | 7 10 19 32 32 34 44 Average Rating 27 | 4 9 16 27 27 27 37 On Entrance 16 | . 7 9 16 29 25 27 Avg Prop Armor Cover (%) 7 | . . . . . . 7 Naked Turns . | . . . . . . . Heaviest Build 91 | 15 32 41 44 42 42 91 Greatest Support 62 | 40 40 40 60 60 62 62 Greatest Overweight (x) 3 | . . 1 . . . 3 Average Overweight (x) . | . . . . . . . Largest Inventory Capacity 20 | 8 15 15 15 15 15 20 Average Capacity 16 | 7 14 15 15 15 15 18 Most Carried 20 | 5 15 15 15 15 15 20 Average Carried 14 | 3 11 14 12 13 14 17 Final Capacity 20 | 8 15 15 15 15 15 20 Final Carried 20 | 5 14 14 15 13 15 20 Class Distribution -------------------- 39% | Commander-Mutant 16% | Scavenger-Tank 15% | Commander-Tank 11% | Scavenger-Gunner 9% | Mutant 4% | Tank Dominant Class ---------------- Mutant | -10/Materials Scavenger-Tank | -9/Materials Scavenger-Tank | -8/Materials Scavenger-Tank | -8/Storage Commander-Tank | -8/Recycling Commander-Mutant | -8/Scraptown Resources | -11 -10 -9 -8 -8 -8 -8 ----------- Run | Yrd Mat Mat Mat Sto Rec Scr Matter Collected 3619 | 326 255 961 313 457 223 1084 Remotely . | . . . . . . . Salvage Created 5919 | 117 329 1454 1543 1391 128 957 Parts 323 | 8 23 94 67 77 10 44 Haulers Intercepted 11 | . . 4 3 4 . . Recyclers Shooed 5 | . . 3 1 1 . . Parts Field Recycled . | . . . . . . . Retrieved Matter . | . . . . . . . Parts Self-Destructed . | . . . . . . . Prevented . | . . . . . . . Parts Restored . | . . . . . . . Kills | -11 -10 -9 -8 -8 -8 -8 ------- Run | Yrd Mat Mat Mat Sto Rec Scr Combat Hostiles Destroyed 101 | . 8 22 29 19 1 22 Guns 79 | . 8 22 28 15 1 5 Cannons 2 | . . . . . . 2 AOE 19 | . . . . 4 . 15 Classes Destroyed 18 | 2 5 3 2 1 . 5 Worker 13 | . 1 5 4 3 . . Builder 6 | . . 2 . 3 1 . Tunneler 4 | 3 . 1 . . . . Hauler 11 | . . 4 3 4 . . Recycler 7 | 1 . 3 . 2 1 . Operator 4 | . 1 1 . 2 . . Watcher 10 | . 2 3 3 2 . . Swarmer 17 | . 3 7 7 . . . Grunt 40 | . 5 8 16 11 . . Brawler 2 | . . . 1 . . 1 Duelist 1 | . . . 1 . . . Sentry 18 | . . 7 4 6 1 . Hunter 2 | . . . . 2 . . Federalist 6 | . . . . . . 6 Explorer 4 | . . . . . . 4 Ranger 1 | . . . . . . 1 Guru 1 | . . . . . . 1 Scrapper 9 | . . . . . . 9 Best Kill Streak 12 | 3 3 7 7 12 1 7 Combat Bots Only 7 | . 3 5 6 6 1 7 Max Kills in Single Turn 3 | 1 1 2 2 3 1 3 Gunslinging 1 | . . . 1 . . . Exploded 3 | . . . . 2 . 3 Melee . | . . . . . . . Uniques/NPCs Destroyed . | . . . . . . . Combat | -11 -10 -9 -8 -8 -8 -8 -------- Run | Yrd Mat Mat Mat Sto Rec Scr Hostile Shots Fired 464 | . 44 113 101 91 4 111 Missed 128 | . 13 31 24 24 . 36 Hits 336 | . 31 82 77 67 4 75 Melee 7 | . . . 1 . . 6 Projectile 329 | . 31 82 76 67 4 69 Critical Strikes 19 | . . 3 4 4 . 8 Part Disruptions 1 | . . . . 1 . . Damage Taken 4800 | . 349 911 1241 1058 69 1172 Core 704 | . 36 118 138 148 . 264 Absorbed by Shields 113 | . . . . . . 113 Regen/Repaired (Parts) 100 | . . . . 100 . . Core Remaining (%) 85 | 100 85 70 . . . . Volleys Fired 358 | 10 39 114 71 75 6 43 Largest 3 | 2 2 3 3 3 3 3 Hottest 183 | 40 40 102 183 183 69 87 Shots Fired 851 | 20 78 261 206 202 16 68 Gun 808 | 20 78 261 206 196 16 31 Cannon 19 | . . . . . . 19 Launcher 24 | . . . . 6 . 18 Special . | . . . . . . . Kinetic 500 | 20 78 222 51 63 16 50 Thermal 327 | . . 39 155 133 . . Explosive 24 | . . . . 6 . 18 Electromagnetic . | . . . . . . . Robot Hit Streak 28 | 8 6 11 28 17 11 10 Robot Miss Streak 4 | 4 4 4 3 4 1 3 Penetration Max . | . . . . . . . Secondary Targets 12 | . 1 2 5 3 . 1 Max Gunslinging Chain 1 | . 1 1 1 1 . 1 Shots Hit Robots 551 | 13 48 149 149 120 24 48 Core Hits 249 | 5 20 60 64 58 6 36 Critical Kills . | . . . . . . . Critical Parts Destroyed 1 | . . . . . . 1 Critical Strikes 21 | . . 3 9 8 . 1 Burn 20 | . . 3 9 8 . . Destroy 1 | . . . . . . 1 Melee Attacks 15 | . . . . . 12 3 Impact . | . . . . . . . Slashing . | . . . . . . . Piercing . | . . . . . . . Sneak Attacks 15 | . . . . . 12 3 Combat Hostiles . | . . . . . . . Follow-up Attacks . | . . . . . . . Damage Inflicted 10490 | 201 585 2184 2482 2629 186 2223 Guns 8043 | 201 585 2184 2458 2039 186 390 Cannons 302 | . . . . . . 302 Explosions 2144 | . . . 23 590 . 1531 Melee . | . . . . . . . Ramming 1 | . . . 1 . . . Kinetic 4396 | 201 585 1773 537 422 186 692 Thermal 3949 | . . 411 1921 1617 . . Explosive 2121 | . . . . 590 . 1531 Electromagnetic 23 | . . . 23 . . . Impact . | . . . . . . . Slashing . | . . . . . . . Piercing . | . . . . . . . Highest Corruption 1 | . . . 1 1 1 . Average Corruption 1 | . . . 1 1 1 . Corruption Purged . | . . . . . . . Corruption Blocked . | . . . . . . . Effects 24 | . . . . 11 13 . Message Errors 8 | . . . . 5 3 . Matter Fused 5 | . . . . . 5 . Heat Flow Errors 3 | . . . . 1 2 . Energy Discharges 2 | . . . . 1 1 . Parts Fused 1 | . . . . 1 . . Data Loss (major) 1 | . . . . 1 . . Misfires 1 | . . . . . 1 . Alerts 1 | . . . . 1 . . Weapon Failures 2 | . . . . 1 1 . Overload Shots . | . . . . . . . Overflow Damage 50 | . . . . 21 . 29 Projectiles . | . . . . . . . Explosions 50 | . . . . 21 . 29 Melee . | . . . . . . . Knockbacks 2 | . . . . . . 2 Impact . | . . . . . . . Kinetic 2 | . . . . . . 2 Secondary . | . . . . . . . Self-Inflicted Damage 113 | . . . 60 . . 53 Shots 4 | . . . 2 . . 2 Rammed 1 | . . . 1 . . . Targets Rammed 1 | . . . 1 . . . Kicked . | . . . . . . . Crushed . | . . . . . . . Highest Temperature 496 | . 6 20 187 496 177 390 Average Temperature 115 | . 4 5 43 119 92 182 Received Heat Transfer 2272 | . 162 321 621 495 15 658 Effects 5 | . . . . 1 . 4 Shutdowns 2 | . . . . 1 . 1 Energy Bleed 3 | . . . . . . 3 Siege Activations . | . . . . . . . Martial Activations . | . . . . . . . Shielding Activations . | . . . . . . . Robots Disrupted . | . . . . . . . Combat Hostiles . | . . . . . . . Robots Corrupted . | . . . . . . . Combat Hostiles . | . . . . . . . Parts Fried . | . . . . . . . Impact Corruptions . | . . . . . . . Robots Melted 1 | . . . 1 . . . Combat Hostiles 1 | . . . 1 . . . Parts Melted 36 | . . 2 19 8 . 7 Heat Transferred 10101 | . . 1110 4847 4144 . . Parts Sabotaged . | . . . . . . . Parts Stolen . | . . . . . . . Parts Stripped . | . . . . . . . Power Chain Reactions . | . . . . . . . Alert | -11 -10 -9 -8 -8 -8 -8 ------- Run | Yrd Mat Mat Mat Sto Rec Scr Maximum Alert Level 2 | . . 1 1 2 1 . Low Security (%) 80 | 100 100 93 55 42 98 . Level 1 14 | . . 6 44 32 1 . Level 2 4 | . . . . 24 . . Level 3 . | . . . . . . . Level 4 . | . . . . . . . Level 5 . | . . . . . . . High Security . | . . . . . . . Max Security . | . . . . . . . Peak Influence 534 | 5 136 213 342 534 215 . Initial 198 | . . 41 9 128 198 . Average 123 | . 54 86 199 250 65 . Influence Increases 3375 | 20 332 740 841 1170 272 . Destroy 0b10 Robot/C 1840 | . 160 440 580 600 60 . Destroy 0b10 Robot/NC 280 | 20 20 95 50 85 10 . Destroy Leader 492 | . 44 124 142 182 . . Allied During Kill 234 | . . . . 190 44 . Successful Hack 64 | . 17 20 7 12 8 . Select Force Hacks 180 | . 30 . . . 150 . Disable Machine 60 | . . 15 45 . . . Destroy Structure 45 | . 1 1 2 41 . . Partial Spotted 15 | . . . . 15 . . Lose Combat Pursuer 165 | . 60 45 15 45 . . Influence Decreases 3375 | 20 233 817 558 965 782 . Entered New Map 560 | . . 58 13 177 312 . Time Decay 2175 | 20 223 579 365 518 470 . Lost Part 110 | . 10 30 30 40 . . Lost Ally 80 | . . . . 80 . . Purge Threat 450 | . . 150 150 150 . . Squads Dispatched 21 | . 3 2 8 8 . . Investigation 5 | . 1 1 3 . . . Extermination . | . . . . . . . Reinforcement 9 | . 2 1 2 4 . . Assault . | . . . . . . . Garrison 7 | . . . 3 4 . . Intercept . | . . . . . . . Searches Triggered . | . . . . . . . Construction Impeded . | . . . . . . . Haulers Reinforced . | . . . . . . . Active Scanning Responses . | . . . . . . . Cargo Convoy Interrupts . | . . . . . . . Stealth | -11 -10 -9 -8 -8 -8 -8 --------- Run | Yrd Mat Mat Mat Sto Rec Scr Distress Signals 5 | . . 2 1 2 . . Communications Jammed . | . . . . . . . Distress Signals . | . . . . . . . Times Spotted 172 | . 16 41 36 31 4 44 Peak Tracking Total 8 | . 3 5 4 5 . 8 Tactical Retreats 8 | . 2 2 1 2 . 1 Traps | -11 -10 -9 -8 -8 -8 -8 ------- Run | Yrd Mat Mat Mat Sto Rec Scr Traps Triggered 3 | . . 1 2 . . . Indirectly . | . . . . . . . Trap Hack Attempts . | . . . . . . . Triggered . | . . . . . . . Disarmed . | . . . . . . . Reprogrammed . | . . . . . . . Reused 1 | . . . . . . 1 Traps Extracted . | . . . . . . . Installed 1 | . . . . . . 1 Triggered . | . . . . . . . Most Traps Carried 1 | . . . . . . 1 Machines | -11 -10 -9 -8 -8 -8 -8 ---------- Run | Yrd Mat Mat Mat Sto Rec Scr Machines Disabled 10 | . . 1 3 . . 6 Max in Single Turn 2 | . . 1 2 . . 1 Machines Repaired . | . . . . . . . Machines Dismantled . | . . . . . . . Machines Sabotaged . | . . . . . . . Overloaded Fab Kills . | . . . . . . . Hacking | -11 -10 -9 -8 -8 -8 -8 --------- Run | Yrd Mat Mat Mat Sto Rec Scr Machines Accessed 43 | . 4 7 10 8 12 2 Terminals 26 | . 3 7 6 4 6 . Fabricators . | . . . . . . . Repair Stations 3 | . . . 1 2 . . Recycling Units 10 | . 1 . 1 2 6 . Scanalyzers 1 | . . . 1 . . . Garrison Access 1 | . . . 1 . . . Total Hacks 115 | . 10 15 19 13 37 21 Successful 68 | . 4 6 4 7 26 21 Failed 47 | . 6 9 15 6 11 . Catastrophic 9 | . 2 1 5 1 . . Database Lockouts . | . . . . . . . Manual 33 | . 4 2 10 2 15 . Terminals 59 | . 6 15 13 5 20 . Fabricators . | . . . . . . . Repair Stations 7 | . . . 1 6 . . Recycling Units 25 | . 4 . 2 2 17 . Scanalyzers 1 | . . . 1 . . . Garrison Access 2 | . . . 2 . . . Terminal Hacks 37 | . 2 6 2 2 4 21 Record 20 | . . . . . . 20 Part Schematic 1 | . . . . . 1 . Robot Analysis 1 | . . . . . 1 . Open Door 1 | . . . . 1 . . Level Access Points 1 | . 1 . . . . . Branch Access Points 3 | . . 2 1 . . . Alert Level 1 | . . . . . 1 . Unreport Threat 3 | . . 1 1 1 . . Hauler Manifests 1 | . . 1 . . . . Registered Components 1 | . . 1 . . . . Registered Prototypes 1 | . 1 . . . . . Zone Layout 2 | . . 1 . . 1 . Proto ID Catalog 1 | . . . . . . 1 Fabricator Hacks . | . . . . . . . Repair Station Hacks 4 | . . . . 4 . . Scan Component 3 | . . . . 3 . . Repair 1 | . . . . 1 . . Recycling Unit Hacks 12 | . 1 . 1 1 9 . Retrieve Matter 4 | . . . 1 . 3 . Retrieve Components 8 | . 1 . . 1 6 . Scanalyzer 1 | . . . 1 . . . Retrieve Study 1 | . . . 1 . . . Garrison Access Hacks . | . . . . . . . Unauthorized Hacks 14 | . 1 . . . 13 . Terminals 8 | . . . . . 8 . Botnet 3 | . . . . . 3 . Skim 5 | . . . . . 5 . Fabricators . | . . . . . . . Repair Stations . | . . . . . . . Recycling Units 6 | . 1 . . . 5 . Tunnel 6 | . 1 . . . 5 . Scanalyzers . | . . . . . . . Garrison Access . | . . . . . . . Data Cores Recovered 2 | . . 1 . 1 . . Used . | . . . . . . . Hacking Detections 33 | . 4 7 8 7 7 . Full Trace Events 2 | . . . 2 . . . Feedback Events . | . . . . . . . Feedback Blocked . | . . . . . . . Robot Schematics Acquired . | . . . . . . . Robots Built . | . . . . . . . Authchips . | . . . . . . . Time . | . . . . . . . Total Robot Build Rating . | . . . . . . . Part Schematics Acquired 1 | . . . . . 1 . Parts Built . | . . . . . . . Authchips . | . . . . . . . Time . | . . . . . . . Total Part Build Rating . | . . . . . . . Part Studies Acquired 1 | . . . 1 . . . Parts Repaired 1 | . . . . 1 . . Time 30 | . . . . 30 . . Parts Recycled . | . . . . . . . Recycled Matter . | . . . . . . . Retrieved Matter . | . . . . . . . Retrieved Components 30 | . . . . 10 20 . Parts Scanalyzed . | . . . . . . . Part Schematics Acquired . | . . . . . . . Parts Damaged . | . . . . . . . Bothacking | -11 -10 -9 -8 -8 -8 -8 ------------ Run | Yrd Mat Mat Mat Sto Rec Scr Used RIF Installer . | . . . . . . . Robots Hacked 2 | . . . . . . 2 Non-combat . | . . . . . . . Combat 2 | . . . . . . 2 Robot Hacks Applied 3 | . . . . . . 3 parse_system 3 | . . . . . . 3 Relay Couplers Released . | . . . . . . . Fabnet Peak Effective % . | . . . . . . . Robots Rewired 24 | . . . . . 24 . Allies Hacked . | . . . . . . . Hacks Repelled . | . . . . . . . Allies | -11 -10 -9 -8 -8 -8 -8 -------- Run | Yrd Mat Mat Mat Sto Rec Scr Total Allies 34 | . . . . 10 24 . Largest Group 29 | . . . . 10 29 27 Highest-Rated Group 455 | . . . . 173 455 435 Highest-Rated Ally 34 | . . . . 29 34 34 Total Orders 11 | . . . . . 2 9 STAY 3 | . . . . . 1 2 FOLLOW 2 | . . . . . 1 1 GUARD 6 | . . . . . . 6 Ally Attacks 231 | . . . . 69 7 155 Total Damage 3353 | . . . . 890 107 2356 Kills 36 | . . . . 13 2 21 Allies Corrupted . | . . . . . . . Allies Melted 5 | . . . . . . 5 Intel | -11 -10 -9 -8 -8 -8 -8 ------- Run | Yrd Mat Mat Mat Sto Rec Scr Active Infowar (turns) 1662 | 21 600 1041 . . . . Terrain 542 | . . 542 . . . . Seismic 1120 | 21 600 499 . . . . Robot Analysis Total 1 | . . . . . 1 . Derelict Logs Recovered . | . . . . . . . Drone Launches . | . . . . . . . Drone Recoveries . | . . . . . . . Exploration | -11 -10 -9 -8 -8 -8 -8 ------------- Run | Yrd Mat Mat Mat Sto Rec Scr Turns Passed 11065 | 125 627 2057 915 1431 1960 3950 Spaces Moved 5813 | 55 302 867 396 689 933 2571 Core 10 | 10 . . . . . . Treads 4410 | 45 302 867 396 689 933 1178 Legs . | . . . . . . . Wheels 1393 | . . . . . . 1393 Hover . | . . . . . . . Flight . | . . . . . . . Fastest Speed 50 | 50 160 160 160 160 158 105 Average Speed 152 | 140 160 188 160 160 159 133 Slowest Speed 240 | 160 160 240 160 160 163 158 Overloaded Moves . | . . . . . . . Propulsion Burnouts . | . . . . . . . Robots Hopped . | . . . . . . . Potential Cave-ins . | . . . . . . . Cave-ins Triggered . | . . . . . . . Exploration Rate (%) 63 | 4 54 68 46 85 99 86 Regions Visited 6 Branch Regions 3 Pre-discovered Areas 14 | . 1 . . 1 6 6 Known Exits Taken 2 | . 1 . 1 . . . Unknown Exits Taken 4 | 1 . 1 . 1 1 . Scrap Searched 9 | . . . . . . 9 Spaces Dug 8 | . . . . . . 8 Terrain Destroyed 110 | . . . . 46 . 64 Melee . | . . . . . . . Projectile 2 | . . . . . . 2 AOE 108 | . . . . 46 . 62 Terrain Rammed . | . . . . . . . Walls Destroyed . | . . . . . . . Machines Disabled . | . . . . . . . Actions | -11 -10 -9 -8 -8 -8 -8 --------- Run | Yrd Mat Mat Mat Sto Rec Scr Total 7355 | 83 369 1086 522 864 1400 3031 Wait 708 | . 8 11 8 40 319 322 Move 5807 | 54 301 866 395 688 932 2571 Hop . | . . . . . . . Pick Up 144 | 12 14 33 18 20 15 32 Fast Attach 13 | . . 6 . 1 2 4 Attach 47 | 7 . 7 10 11 2 10 Detach 4 | . . . . . 1 3 Swap 53 | . 2 13 7 11 8 12 Drop 118 | . 5 36 12 18 17 30 Fire 358 | 10 39 114 71 75 6 43 Melee 15 | . . . . . 12 3 Ram . | . . . . . . . Kick . | . . . . . . . Crush 1 | . . . 1 . . . Escape Stasis . | . . . . . . . Rewire 86 | . . . . . 86 . Trap 1 | . . . . . . 1 Miscellaneous . | . . . . . . . Route ------- -11/Scrapyard -10/Materials (discovered 3 exits: *Mat x3) -9/Materials (discovered 2 exits: *Mat / *Min) -8/Materials (discovered 2 exits: *Sto x2) -8/Storage -8/Recycling (discovered 2 exits: *Fac / *Scr) -8/Scraptown (discovered 2 exits: *Fac x2) History --------- Turn | Location | Event 17 | -11/Scrapyard | Discovered new exit (range 16) 126 | -11/Scrapyard | Entered Materials 310 | -10/Materials | Build established: Mutant 403 | -10/Materials | Discovered new exit (range 3) 580 | -10/Materials | Identified exit to Materials 753 | -10/Materials | Entered another Materials area 753 | -9/Materials | Evolved 2 slots: Utility x1, Weapon x1 1092 | -9/Materials | Identified exit to Mines 1619 | -9/Materials | Build established: Scavenger-Gunner 1960 | -9/Materials | Discovered new exit (range 16) 2333 | -9/Materials | Build established: Tank 2763 | -9/Materials | Build established: Scavenger-Tank 2810 | -9/Materials | Entered another Materials area 2810 | -8/Materials | Evolved 2 slots: Propulsion x1, Utility x1 3089 | -8/Materials | Discovered new exit (range 15) 3421 | -8/Materials | Garrison activated, responded to threat 3426 | -8/Materials | Build established: Scavenger-Gunner 3540 | -8/Materials | Identified exit to Storage 3725 | -8/Materials | Entered Storage 3775 | -8/Storage | Repaired Prc. Beam Rifle 3899 | -8/Storage | Lost 3 parts (2n1w) 4014 | -8/Storage | Garrison activated, responded to threat 4587 | -8/Storage | Build established: Scavenger-Tank 4664 | -8/Storage | Garrison activated, responded to threat 4690 | -8/Storage | Assisted by bots powering up and referring to "LRC-V3" 4701 | -8/Storage | Core integrity fell below 50% 4853 | -8/Storage | Lost 3 allies 4891 | -8/Storage | Met 01-MTF 4992 | -8/Storage | Build established: Commander-Tank 5062 | -8/Storage | Learned location of Armory (-4) 5135 | -8/Storage | Discovered new exit (range 7) 5156 | -8/Storage | Entered Recycling 5156 | -8/Recycling | Accompanied by 6 allies (01-MTF) 5533 | -8/Recycling | Discovered new exit (range 9) 6281 | -8/Recycling | Learned location of Lower Caves (-7) 6325 | -8/Recycling | Learned 4 Lower Caves zone layouts 6360 | -8/Recycling | Learned Factory stockpile data 6385 | -8/Recycling | Learned location of 2 exits from Lower Caves 6457 | -8/Recycling | Scanned before Scraplab entrance 6471 | -8/Recycling | Learned 4 Lower Caves zone layouts 6478 | -8/Recycling | Found Prototype Energy Gun 6484 | -8/Recycling | Identified 01-MTF's Shockpuncher 6499 | -8/Recycling | Found Prototype Energy Gun 6535 | -8/Recycling | Identified KN-7UR's Autopenetrator 6785 | -8/Recycling | Build established: Commander-Mutant 6958 | -8/Recycling | Entered Scraplab 6971 | -8/Recycling | Discovered new exit (range 3) 7116 | -8/Recycling | Entered Scraptown 7116 | -8/Scraptown | Accompanied by 27 allies 7116 | -8/Scraptown | System corruption cleaned by C-Scrubber 7117 | -8/Scraptown | Identified exit to Factory 7508 | -8/Scraptown | Visited Cyclists 7523 | -8/Scraptown | Visited IN-MT5's Study 7609 | -8/Scraptown | Visited Fellowship of the Rings 7625 | -8/Scraptown | Visited Awakened 7647 | -8/Scraptown | Visited Bundlers 7734 | -8/Scraptown | Visited Symbiants 7901 | -8/Scraptown | Visited UFD Registry 7917 | -8/Scraptown | Registered with UFD as "Railtorch" 7957 | -8/Scraptown | Visited Science Guys 8044 | -8/Scraptown | Visited Scrapoid Research Area 8065 | -8/Scraptown | Visited Observation Area 8085 | -8/Scraptown | Visited Infowarlord's Domain 8106 | -8/Scraptown | Visited A0-MCA Data Center 8142 | -8/Scraptown | Visited Junk Repository 8174 | -8/Scraptown | Visited Curators Association 8228 | -8/Scraptown | Visited Cartography Club 8879 | -8/Scraptown | Heard Great Nut preacher, LISTEN AND RECITE! 9584 | -8/Scraptown | Warned about trapping Scraptown 9638 | -8/Scraptown | Found Spectral Analyzer 9664 | -8/Scraptown | Given an A+ rating by A0-MCA 9666 | -8/Scraptown | Found A0-MCA's Component Scanner 9994 | -8/Scraptown | Learned location of Recycling (-8) 9994 | -8/Scraptown | Learned location of Upper Caves (-5) 9994 | -8/Scraptown | Learned location of Proximity Caves (-5) 9994 | -8/Scraptown | Learned 24 Upper Caves zone layouts 9994 | -8/Scraptown | Learned 12 Materials zone layouts 9994 | -8/Scraptown | Learned 8 Proximity Caves zone layouts 9994 | -8/Scraptown | Learned 16 Factory zone layouts 9994 | -8/Scraptown | Learned location of 2 exits from Upper Caves 9994 | -8/Scraptown | Learned 8 Factory zone layouts 9994 | -8/Scraptown | Learned 4 Hub_04(d) zone layouts 9994 | -8/Scraptown | Learned 4 Armory zone layouts 9994 | -8/Scraptown | Learned location of Testing (-3) 9994 | -8/Scraptown | Learned location of 2 exits from Research 9994 | -8/Scraptown | Learned 4 Recycling zone layouts 9994 | -8/Scraptown | Learned location of 1 exit from Proximity Caves 10018 | -8/Scraptown | Found Deep Structural Scanner 10626 | -8/Scraptown | Met Optimus 10626 | -8/Scraptown | Accepted into 0bPrime 10694 | -8/Scraptown | Civil war broke out across Scraptown 10781 | -8/Scraptown | Lost 4 parts (1p1n1u1w) 10786 | -8/Scraptown | Found PL-3XN's Ring of Power 10816 | -8/Scraptown | Lost 12 allies 10824 | -8/Scraptown | Destroyed 7 combat bots 10836 | -8/Scraptown | Core integrity fell below 20% 10907 | -8/Scraptown | Found Field Manipulator 10998 | -8/Scraptown | Found Siege Cannon Replica 11030 | -8/Scraptown | Lost 3 allies 11066 | -8/Scraptown | Destroyed self with Missile Launcher Last Messages --------------- to repair Ovr. Titanium Leg. 11054_ 3B-QS9(j) destroyed. 11054_ BR-SYH(g) destroyed. 11056_ ZZ-IG1(g) destroyed. 11057_ AA-5LO(j) cannibalizes Aluminum Leg to repair Ovr. Titanium Leg. 11057_ The unstable cave ceiling collapses. 11059_ Slug penetrates JJ-57H(j). 11060_ AA-5LO(j) destroyed. 11062_ Overheating: Energy bleed (-55). 11062_ Mak. Salvage Targeting Computer melted. 11062_ Mak. Microdissipator Network melted. 11062_ JJ-57H(j) destroyed. 11063_ Slug penetrates WP-S3B(g). 11063_ WP-S3B(g) destroyed. 11065_ The unstable cave ceiling collapses. 11065_ Ovr. Pulse Rifle crushed. 11065_ Bolt penetrates Wall. 11066_ Hrd. Heavy Armor Plating destroyed. 11066_ Destroyed Hrd. Heavy Armor Plating. Map ----- +----------------------------------------------------+ | ???????????????????????????????????????????#####?? | | ???????????????????????????????????????????#"""#?? | | ??????????????????????????????????####?????#" "#?? | | ?????????????????????????????????## ##????# < #?? | | ???????????????????????"|##!!"#### ###### ^ ##? | | ?????????????????????? #? | | ??????????????????????? #? | | ???????????????????????????####### ###########? | | #########????????????????????????## ##??????????? | | # #?????###?###?????????????# #???????????? | | # # #####????#"###"#?????????????# #???????????? | | ##### #?#### "=" ####??????????# #???##?##???? | | # # # #?#" """ "#??????????# #?#? ## #???? | | ### ## # #??#"" =""#???????????# ## # # ##??? | | # # #??#[" =%"=#???????????# ## # #??? | | #X#### #?##"" % [""###?######### ## ##?? | | #### ## #?#" ] "##[/#[[!#!!# j## #?? | | # #?##"" %!*!"###!!#%!!#=!#[ ## #?? | | ##=######??#!" !==!! #?# #!=*#[p ???? | | %*%= #?##"" %%*%""### ==!%!#% ?????? | | ! #?#" =%%[= "## [!%*=* = # ""???????? | | ##### ####### =! ##### = # ! % ????????? | | ##### ## # ## [%! ### % %%=# ######### | | #"""" ==! "* == " %% ! *%!= #""""""" | | # /%!% !%= =!! [ % ## """""" | | #" % [==%! % [=%*%@ ! =[ # """""" | | # !% [!%[ [==*=%=*3==! =! !% =[! # " " | | #"!= = =!! !*[!%!%=% =![%[!!!% # " | | =%= *%[ =%==!%== / != !=!= " | | %! ] " """""""" ! *=!= %!== %!*!=## """""" | | [=] """"""""""""""" = !%[=!! %"## ""!""" | | %! ""###### ####### ### = = !%[["## """""" | | == ""# ####??# =%!= %"######### | | !%[ ""# X"#?????####""!%%= "######### | | * * ""# "" "" ##????????#""!%[! "## | | " % ""# "" "" X"#??????###"" [ "## | | " "# " " ######### #"" "## | | #" " "" | | #" "" "" "## | | #"= ""# " " ######### #"" "######### | | %! ""# "" "" ""#??????###"" "#???????? | | = ""# "" "" ##????????#"" "#???????? | | ""# X"?????????#"" "#??###### | | ""# ##????????#"" "#?? """"" | | "###### ################"" "#? | | """"""""""""""""""""""""""" "## "??? | | """"""%"%"""""""""""""""""" "??? | | [%* *!*%!% "## "??? | | ! ===*= "#? "??? | | !%=! "#?? "??? | +----------------------------------------------------+ Best States ------------- Heat Dissipation 72 Energy Generation 18 Energy Capacity 280 Matter Stores 300 Matter Capacity 300 Sight Range 16 Terrain Scan Range 16 Terrain Scan Density 85 Armor Coverage 825 Resistance: EM 15 Evasion (%) 50 Recoil Reduction 3 Offensive Hacking 10 Authchip Count 2 Item Schematics ----------------- Magnetic Acceleration Cannon | -8/Recycling | Hacked Robot Schematics ------------------ None Fabricated ------------ Nothing Repaired ---------- Prc. Beam Rifle | 9% | -8/Storage Studied --------- Lgt. Treads | -8/Materials | Hacked Alien Tech Used ----------------- None Achievements -------------- None Challenges ------------ None Game ------ Seed DynamicAuthchipCapacitor Manual? 0 Play Time 01:09:31 Cumulative 630.8 hours Start 2025.12.28 @ 15:12:19 End 2026.01.10 @ 14:06:25 Sessions 4 Manual Loads 0 Difficulty Rogue Special Mode None Game No. 801 Rogue 801 Adventurer 0 Explorer 0 Win Type - Total 23 Types 10/1/3/3/2/0/2/2/0/0 Lore% 96 Gallery% 92 Achievement% 80 Wizard Run 0 Options --------- Layout 2 ASCII 0 Keyboard 0 Movement Mouse Keybinds 0 Fullscreen 2 Font 24/Tamsyn Map View 50x49 Zoom Use 0% Tactical HUD 1 Map Filters NONE Filters NONE Steam 1 RUN: 0607326a-74ff-4501-a91e-c0822a1d5723